fUST/lending_fUST_20250611
["ID","MTS","AMOUNT","RATE_DAILY","PERIOD"]
[365381510,1749635445440,-460.0,0.00022186,4]
[365381511,1749635445450,-994.7,0.00022186,4]
[365381513,1749635445459,-460.0,0.00022186,4]
[365381515,1749635445469,-2825.79,0.00022186,4]
[365381516,1749635445479,-580.96,0.00022186,4]
[365381517,1749635445488,-303.60493372,0.00022187,4]
[365381518,1749635445497,-460.0,0.00022187,4]
[365381520,1749635445506,-460.0,0.00022187,4]
[365381522,1749635445515,-460.0,0.00022187,4]
[365381524,1749635445524,-460.0,0.00022187,4]
[365381525,1749635445538,-460.0,0.00022187,4]
[365381527,1749635445547,-277.90834845,0.00022187,4]
[365381529,1749635445556,-460.0,0.00022187,4]
[365381530,1749635445565,-205.00562769,0.00022187,4]
[365381531,1749635445575,-308.29167125,0.00022187,4]
[365381532,1749635445586,-320.41920565,0.00022187,4]
[365381533,1749635445596,-204.43935566,0.00022187,4]
[365381534,1749635445606,-460.0,0.00022187,4]
[365381535,1749635445615,-972.71,0.00022187,4]
[365381536,1749635445625,-460.0,0.00022187,4]
[365381537,1749635445634,-1088.65,0.00022187,4]
[365381538,1749635445643,-460.0,0.00022187,4]
[365381539,1749635445652,-460.0,0.00022187,4]
[365381540,1749635445662,-500.77,0.00022187,4]
[365381541,1749635445671,-460.0,0.00022187,4]
[365381542,1749635445680,-460.0,0.00022187,4]
[365381543,1749635445689,-222.47307361,0.00022187,4]
[365381544,1749635445698,-330.0,0.00022187,4]
[365381545,1749635445707,-460.0,0.00022187,4]
[365381546,1749635445716,-401.25,0.00022187,4]
[365381547,1749635445725,-460.0,0.00022187,2]
[365381548,1749635445734,-460.0,0.00022187,4]
[365381549,1749635445743,-460.0,0.00022187,4]
[365381550,1749635445751,-337.41269637,0.00022189,4]
[365381551,1749635445761,-444.29286152,0.00022193,2]
[365381552,1749635445769,-151.0,0.000222,10]
[365381553,1749635445778,-1929.9742682,0.0002221,6]
[365381554,1749635445787,-1000.0,0.00022228,2]
[365381555,1749635445797,-500.0,0.00022228,2]
[365381556,1749635445806,-350.24060396,0.00022228,2]
[365381557,1749635445815,-250.0,0.00022245,2]
[365381558,1749635445826,-500.0,0.00022246,2]
[365381559,1749635445837,-151.0,0.000223,8]
[365381560,1749635445847,-5000.0,0.00022306,2]
[365381561,1749635445855,-1929.9742682,0.00022314,7]
[365381562,1749635445865,-233.96692661,0.00022347,2]
[365381563,1749635445874,-11860.25191276,0.0002239,2]
[365381564,1749635445883,-835.03886221,0.0002239,2]
[365381565,1749635445893,-160.0,0.0002239,2]
[365381566,1749635445905,-424.19973472,0.0002239,2]
[365381567,1749635445914,-160.0,0.0002239,2]
[365381568,1749635445923,-160.0,0.0002239,2]
[365381569,1749635445932,-160.0,0.0002239,2]
[365381570,1749635445941,-213.16534259,0.0002239,2]
[365381571,1749635445950,-160.0,0.0002239,2]
[365381572,1749635445959,-160.0,0.0002239,2]
[365381573,1749635445968,-229.71724145,0.0002239,2]
[365381574,1749635445977,-160.0,0.0002239,2]
[365381575,1749635445986,-844.64040732,0.00022393,2]
[365381576,1749635445995,-160.0,0.00022393,2]
[365381577,1749635446004,-151.0,0.000224,5]
[365381578,1749635446013,-1929.9742682,0.00022417,7]
[365381579,1749635446022,-3404.70011491,0.0002242,2]
[365381580,1749635446031,-460.0,0.00022459,4]
[365381581,1749635446040,-460.0,0.00022459,4]
[365381582,1749635446049,-460.0,0.00022459,4]
[365381583,1749635446058,-460.0,0.00022459,4]
[365381584,1749635446067,-1917.12,0.00022459,4]
[365381585,1749635446076,-1785.88,0.00022459,4]
[365381586,1749635446088,-1443.2,0.00022459,4]
[365381587,1749635446098,-2188.16,0.00022459,4]
[365381588,1749635446107,-460.0,0.00022459,4]
[365381589,1749635446116,-460.0,0.00022459,4]
[365381590,1749635446127,-155.86137314,0.00022459,4]
[365381591,1749635446137,-1515.33,0.00022459,4]
[365381592,1749635446147,-230.0,0.00022459,4]
[365381593,1749635446156,-1727.99,0.00022459,4]
[365381594,1749635446167,-969.14,0.00022459,4]
[365381595,1749635446176,-750.51,0.00022459,4]
[365381596,1749635446186,-500.0,0.00022459,2]
[365381597,1749635446279,-504.5309,0.00022459,2]
[365381598,1749635446290,-500.0,0.00022459,2]
[365381599,1749635446299,-504.5309,0.00022459,2]
[365381600,1749635446308,-504.5309,0.00022459,2]
[365381601,1749635446317,-500.0,0.00022459,2]
[365381602,1749635446327,-504.5309,0.00022459,2]
[365381603,1749635446337,-500.0,0.00022459,2]
[365381604,1749635446346,-504.5309,0.00022459,2]
[365381605,1749635446355,-504.5309,0.00022459,2]
[365381606,1749635446364,-500.0,0.00022459,2]
[365381607,1749635446374,-504.5309,0.00022459,2]
[365381608,1749635446383,-504.5309,0.00022459,2]
[365381609,1749635446393,-500.0,0.00022459,2]
[365381610,1749635446403,-504.5309,0.00022459,2]
[365381611,1749635446412,-504.5309,0.00022459,2]
[365381612,1749635446422,-500.0,0.00022459,2]
[365381613,1749635446431,-500.0,0.00022459,2]
[365381614,1749635446441,-504.5309,0.00022459,2]
[365381615,1749635446451,-504.5309,0.00022459,2]
[365381616,1749635446460,-504.5309,0.00022459,2]
[365381617,1749635446470,-504.5309,0.00022459,2]
[365381618,1749635446479,-504.5309,0.00022459,2]
[365381619,1749635446488,-504.5309,0.00022459,2]
[365381620,1749635446498,-504.5309,0.00022459,2]
[365381621,1749635446508,-504.5309,0.00022459,2]
[365381622,1749635446517,-500.0,0.00022459,2]
[365381623,1749635446526,-504.5309,0.00022459,2]
[365381624,1749635446538,-504.5309,0.00022459,2]
[365381625,1749635446547,-500.0,0.00022459,2]
[365381626,1749635446557,-460.0,0.0002246,4]
[365381627,1749635446567,-460.0,0.0002246,4]
[365381628,1749635446576,-460.0,0.0002246,4]
[365381629,1749635446586,-460.0,0.0002246,4]
[365381630,1749635446596,-174.86,0.0002246,4]
[365381631,1749635446605,-460.0,0.0002246,4]
[365381632,1749635446615,-207.14944358,0.0002246,4]
[365381633,1749635446625,-460.0,0.0002246,4]
[365381634,1749635446636,-460.0,0.0002246,4]
[365381635,1749635446645,-1076.29,0.0002246,4]
[365381636,1749635446655,-653.87,0.0002246,4]
[365381637,1749635446664,-460.0,0.0002246,4]
[365381638,1749635446673,-768.59,0.0002246,4]
[365381639,1749635446682,-959.05,0.0002246,4]
[365381640,1749635446692,-460.0,0.0002246,4]
[365381641,1749635446702,-460.0,0.0002246,4]
[365381642,1749635446711,-460.0,0.0002246,4]
[365381643,1749635446721,-1132.89,0.0002246,4]
[365381644,1749635446730,-460.0,0.0002246,4]
[365381645,1749635446740,-460.0,0.0002246,4]
[365381646,1749635446749,-460.0,0.0002246,4]
[365381647,1749635446759,-460.0,0.0002246,4]
[365381648,1749635446768,-994.7,0.0002246,4]
[365381649,1749635446778,-460.0,0.0002246,4]
[365381650,1749635446787,-2825.79,0.0002246,4]
[365381651,1749635446796,-580.96,0.0002246,4]
[365381652,1749635446806,-460.0,0.00022461,4]
[365381653,1749635446815,-460.0,0.00022461,4]
[365381654,1749635446824,-460.0,0.00022461,4]
[365381655,1749635446833,-320.14910191,0.00022461,4]
[365381656,1749635446846,-360.0,0.00022461,4]
[365381657,1749635446855,-460.0,0.00022461,4]
[365381658,1749635446864,-460.0,0.00022461,4]
[365381659,1749635446873,-972.71,0.00022461,4]
[365381660,1749635446882,-460.0,0.00022461,4]
[365381661,1749635446891,-1088.65,0.00022461,4]
[365381662,1749635446900,-460.0,0.00022461,4]
[365381663,1749635446909,-608.88069575,0.00022461,4]
[365381664,1749635446918,-500.77,0.00022461,4]
[365381665,1749635446927,-460.0,0.00022461,4]
[365381666,1749635446936,-460.0,0.00022461,4]
[365381667,1749635446945,-151.499358,0.00022461,7]
[365381668,1749635446954,-460.0,0.00022461,4]
[365381669,1749635446963,-152.624397,0.00022461,7]
[365381670,1749635446972,-159.24199,0.00022461,7]
[365381671,1749635446982,-460.0,0.00022461,2]
[365381672,1749635446991,-151.0,0.00022461,7]
[365381673,1749635447000,-288.52895439,0.00022461,4]
[365381674,1749635447009,-460.0,0.00022461,4]
[365381675,1749635447019,-151.0,0.00022461,7]
[365381676,1749635447028,-153.569466,0.00022461,7]
[365381677,1749635447038,-3749.597534,0.00022461,2]
[365381678,1749635447048,-3749.597534,0.00022461,2]
[365381679,1749635447057,-151.0,0.00022461,7]
[365381680,1749635447066,-500.0,0.0002247,2]
[365381681,1749635447075,-176.0,0.00022478,2]
[365381682,1749635447086,-151.0,0.000225,9]
[365381683,1749635447096,-329.210747,0.00022521,2]
[365381684,1749635447106,-154.9447424,0.00022521,2]
[365381685,1749635447115,-1929.9742682,0.00022521,7]
[365381686,1749635447125,-946.04,0.00022521,2]
[365381687,1749635447134,-160.0,0.00022585,3]
[365381688,1749635447143,-1929.9742682,0.00022624,7]
[365381689,1749635447153,-1000.0,0.00022667,5]
[365381690,1749635447162,-151.0,0.000227,5]
[365381691,1749635447170,-151.0,0.000227,7]
[365381692,1749635447180,-444.29286155,0.00022718,2]
[365381693,1749635447189,-1929.9742682,0.00022728,7]
[365381694,1749635447198,-11860.25191276,0.0002273,7]
[365381695,1749635447208,-460.0,0.00022733,4]
[365381696,1749635447217,-460.0,0.00022733,4]
[365381697,1749635447227,-460.0,0.00022733,4]
[365381698,1749635447236,-220.0,0.00022733,4]
[365381699,1749635447245,-1917.12,0.00022733,4]
[365381700,1749635447255,-1785.88,0.00022733,4]
[365381701,1749635447264,-2188.16,0.00022733,4]
[365381702,1749635447273,-1443.2,0.00022733,4]
[365381703,1749635447282,-460.0,0.00022733,4]
[365381704,1749635447291,-460.0,0.00022733,4]
[365381705,1749635447303,-1515.33,0.00022733,4]
[365381706,1749635447312,-1727.99,0.00022733,4]
[365381707,1749635447321,-969.14,0.00022733,4]
[365381708,1749635447332,-750.51,0.00022733,4]
[365381709,1749635447341,-566.81124085,0.00022734,4]
[365381710,1749635447350,-460.0,0.00022734,4]
[365381711,1749635447359,-460.0,0.00022734,4]
[365381712,1749635447368,-280.0,0.00022734,4]
[365381713,1749635447377,-460.0,0.00022734,4]
[365381714,1749635447387,-460.0,0.00022734,4]
[365381715,1749635447396,-460.0,0.00022734,4]
[365381716,1749635447405,-1076.29,0.00022734,4]
[365381717,1749635447415,-653.87,0.00022734,4]
[365381718,1749635447424,-360.43,0.00022734,4]
[365381719,1749635447434,-768.59,0.00022734,4]
[365381720,1749635447444,-959.05,0.00022734,4]
[365381721,1749635447453,-360.0,0.00022734,4]
[365381722,1749635447463,-460.0,0.00022734,4]
[365381723,1749635447472,-460.0,0.00022734,4]
[365381724,1749635447482,-1132.89,0.00022734,4]
[365381725,1749635447491,-460.0,0.00022734,4]
[365381726,1749635447501,-460.0,0.00022734,4]
[365381727,1749635447511,-280.0,0.00022734,4]
[365381728,1749635447521,-460.0,0.00022734,4]
[365381729,1749635447531,-994.7,0.00022734,4]
[365381730,1749635447542,-460.0,0.00022734,4]
[365381731,1749635447551,-2825.79,0.00022734,4]
[365381732,1749635447561,-580.96,0.00022734,4]
[365381733,1749635447570,-360.0,0.00022735,4]
[365381734,1749635447581,-270.0,0.00022735,4]
[365381735,1749635447590,-460.0,0.00022735,4]
[365381736,1749635447600,-151.0,0.00022735,7]
[365381737,1749635447611,-199.9073917,0.00022735,4]
[365381738,1749635447620,-152.931355,0.00022735,7]
[365381739,1749635447630,-151.0,0.00022735,7]
[365381740,1749635447639,-151.0,0.00022735,7]
[365381741,1749635447648,-243.7,0.00022735,4]
[365381742,1749635447657,-972.71,0.00022735,4]
[365381743,1749635447666,-460.0,0.00022735,4]
[365381744,1749635447675,-1088.65,0.00022735,4]
[365381745,1749635447684,-196.33,0.00022735,4]
[365381746,1749635447693,-213.16534259,0.00022735,7]
[365381747,1749635447703,-500.77,0.00022735,4]
[365381748,1749635447711,-460.0,0.00022735,4]
[365381749,1749635447720,-460.0,0.00022735,4]
[365381750,1749635447730,-160.0,0.00022735,7]
[365381751,1749635447741,-460.0,0.00022735,4]
[365381752,1749635447750,-151.0,0.00022735,7]
[365381753,1749635447760,-341.60666462,0.00022735,2]
[365381754,1749635447769,-151.0,0.00022735,7]
[365381755,1749635447778,-371.18873186,0.00022735,4]
[365381756,1749635447787,-151.0,0.00022735,7]
[365381757,1749635447796,-151.0,0.00022736,7]
[365381758,1749635447805,-1110.910619,0.000228,2]
[365381759,1749635447814,-1929.9742682,0.00022831,8]
[365381760,1749635447823,-60089.56867179,0.00022852,2]
[365381761,1749635448455,-347.3066863,0.0002211,2]
[365381762,1749635448465,-3015.38543349,0.00022852,2]
[365381763,1749635565056,192.1216005,0.00024984,60]
[365381764,1749635634095,200.0,0.00024649,120]
[365381765,1749635696639,445.64414158,0.000201,19]
[365381767,1749636050043,9503.78,0.00024976,60]
[365381768,1749636074530,1199.5552,0.00024976,60]
[365381769,1749636173379,161.698922,0.00013699,2]
[365381820,1749636631866,-218.56,0.00019902,2]
[365381821,1749636631876,-872.5886992,0.0002,3]
[365381822,1749636631886,-324.53,0.00020102,2]
[365381823,1749636631897,-185.729615,0.00020197,2]
[365381824,1749636631906,-218.56,0.00020241,2]
[365381825,1749636631916,-160.0,0.00020325,2]
[365381826,1749636631929,-218.56,0.00020581,2]
[365381828,1749636631938,-218.56,0.0002092,2]
[365381829,1749636631947,-649.06,0.0002106,2]
[365381832,1749636631958,-600.0,0.00021064,2]
[365381834,1749636631968,-218.56,0.00021259,2]
[365381836,1749636631977,-179.65118599,0.00021261,2]
[365381838,1749636631987,-819.94696215,0.00021351,2]
[365381840,1749636631996,-1200.0,0.00021358,2]
[365381843,1749636632007,-300.0,0.00021359,2]
[365381845,1749636632017,-460.0,0.00021359,4]
[365381847,1749636632026,-460.0,0.00021359,4]
[365381849,1749636632035,-220.0,0.00021359,4]
[365381850,1749636632044,-3.53823337,0.00021359,4]
[365381851,1749636632056,-456.46176663,0.00021359,4]
[365381852,1749636632065,-1681.52,0.00021359,4]
[365381853,1749636632075,-1960.68,0.00021359,4]
[365381854,1749636632084,-1598.27,0.00021359,4]
[365381855,1749636632093,-1327.35,0.00021359,4]
[365381856,1749636632103,-460.0,0.00021359,4]
[365381857,1749636632113,-460.0,0.00021359,4]
[365381858,1749636632122,-902.36,0.00021359,4]
[365381859,1749636632131,-1360.43,0.00021359,4]
[365381860,1749636632140,-1613.33,0.00021359,4]
[365381861,1749636632149,-271.40179982,0.00021359,4]
[365381862,1749636632160,-295.40944103,0.00021359,4]
[365381863,1749636632169,-22.88700662,0.00021359,4]
[365382016,1749636638176,-571.27299338,0.00021359,4]
[365382018,1749636638185,-460.0,0.0002136,4]
[365382020,1749636638195,-280.0,0.0002136,4]
[365382022,1749636638204,-460.0,0.0002136,4]
[365382024,1749636638214,-460.0,0.0002136,4]
[365382026,1749636638224,-460.0,0.0002136,4]
[365382028,1749636638233,-2781.81,0.0002136,4]
[365382030,1749636638242,-555.98,0.0002136,4]
[365382032,1749636638252,-360.43,0.0002136,4]
[365382034,1749636638261,-709.91,0.0002136,4]
[365382036,1749636638270,-845.53,0.0002136,4]
[365382038,1749636638280,-360.0,0.0002136,4]
[365382041,1749636638290,-460.0,0.0002136,4]
[365382043,1749636638299,-460.0,0.0002136,4]
[365382045,1749636638309,-996.29,0.0002136,4]
[365382047,1749636638318,-460.0,0.0002136,4]
[365382049,1749636638327,-460.0,0.0002136,4]
[365382051,1749636638339,-280.0,0.0002136,4]
[365382054,1749636638349,-460.0,0.0002136,4]
[365382057,1749636638359,-460.0,0.0002136,4]
[365382059,1749636638368,-2516.94,0.0002136,4]
[365382061,1749636638378,-460.0,0.0002136,4]
[365382063,1749636638387,-883.22,0.0002136,4]
[365382065,1749636638396,-460.0,0.0002136,4]
[365382067,1749636638406,-608.88069575,0.0002136,4]
[365382069,1749636638415,-1065.83,0.0002136,4]
[365382071,1749636638425,-460.0,0.00021361,4]
[365382073,1749636638434,-360.0,0.00021361,4]
[365382075,1749636638443,-390.0,0.00021361,4]
[365382077,1749636638453,-270.0,0.00021361,4]
[365382079,1749636638462,-460.0,0.00021361,4]
[365382080,1749636638472,-460.0,0.00021361,4]
[365382082,1749636638481,-199.9073917,0.00021361,4]
[365382084,1749636638490,-460.0,0.00021361,4]
[365382086,1749636638500,-196.33,0.00021361,4]
[365382088,1749636638509,-460.0,0.00021361,4]
[365382090,1749636638519,-460.0,0.00021361,4]
[365382093,1749636638529,-468.08,0.00021361,4]
[365382095,1749636638539,-460.0,0.00021361,4]
[365382097,1749636638548,-460.0,0.00021361,2]
[365382099,1749636638558,-288.52895439,0.00021361,4]
[365382100,1749636638568,-460.0,0.00021361,4]
[365382102,1749636638577,-240.0,0.00021633,4]
[365382105,1749636638588,-280.0,0.00021633,4]
[365382106,1749636638598,-460.0,0.00021633,4]
[365382109,1749636638608,-1681.52,0.00021633,4]
[365382111,1749636638618,-1960.68,0.00021633,4]
[365382113,1749636638627,-1598.27,0.00021633,4]
[365382115,1749636638637,-1327.35,0.00021633,4]
[365382117,1749636638646,-460.0,0.00021633,4]
[365382119,1749636638655,-460.0,0.00021633,4]
[365382121,1749636638665,-902.36,0.00021633,4]
[365382123,1749636638674,-1360.43,0.00021633,4]
[365382125,1749636638684,-1613.33,0.00021633,4]
[365382127,1749636638695,-594.16,0.00021633,4]
[365382129,1749636638704,-460.0,0.00021634,4]
[365382131,1749636638713,-460.0,0.00021634,4]
[365382133,1749636638723,-460.0,0.00021634,4]
[365382135,1749636638732,-460.0,0.00021634,4]
[365382137,1749636638741,-2781.81,0.00021634,4]
[365382139,1749636638751,-555.98,0.00021634,4]
[365382141,1749636638760,-709.91,0.00021634,4]
[365382143,1749636638770,-845.53,0.00021634,4]
[365382145,1749636638780,-460.0,0.00021634,4]
[365382147,1749636638789,-460.0,0.00021634,4]
[365382149,1749636638799,-996.29,0.00021634,4]
[365382151,1749636638808,-604.04,0.00021634,4]
[365382154,1749636638818,-460.0,0.00021634,4]
[365382158,1749636638827,-460.0,0.00021634,4]
[365382159,1749636638837,-460.0,0.00021634,4]
[365382161,1749636638846,-2516.94,0.00021634,4]
[365382163,1749636638856,-460.0,0.00021634,4]
[365382165,1749636638866,-883.22,0.00021634,4]
[365382167,1749636638875,-243.7,0.00021634,4]
[365382169,1749636638884,-1065.83,0.00021634,4]
[365382171,1749636638894,-460.0,0.00021635,4]
[365382173,1749636638903,-460.0,0.00021635,4]
[365382175,1749636638912,-460.0,0.00021635,4]
[365382177,1749636638923,-460.0,0.00021635,4]
[365382179,1749636638935,-452.23925919,0.00021635,4]
[365382181,1749636638944,-460.0,0.00021635,4]
[365382183,1749636638954,-468.08,0.00021635,4]
[365382185,1749636638964,-460.0,0.00021635,4]
[365382187,1749636638974,-460.0,0.00021635,2]
[365382189,1749636638984,-460.0,0.00021635,4]
[365382191,1749636638994,-178.1554894,0.00021699,2]
[365382193,1749636639003,-153.0,0.00021699,2]
[365382195,1749636639014,-179.65118596,0.00021777,2]
[365382197,1749636639023,-207.4,0.00021894,2]
[365382199,1749636639032,-523.61,0.00021898,10]
[365382201,1749636639041,-2055.05610849,0.000219,6]
[365382203,1749636639051,-460.0,0.00021907,4]
[365382205,1749636639060,-1681.52,0.00021907,4]
[365382207,1749636639069,-1960.68,0.00021907,4]
[365382210,1749636639081,-1598.27,0.00021907,4]
[365382212,1749636639091,-1327.35,0.00021907,4]
[365382214,1749636639100,-460.0,0.00021907,4]
[365382216,1749636639110,-400.0,0.00021907,4]
[365382218,1749636639119,-902.36,0.00021907,4]
[365382220,1749636639128,-1360.43,0.00021907,4]
[365382222,1749636639137,-1613.33,0.00021907,4]
[365382224,1749636639146,-594.16,0.00021907,4]
[365382226,1749636639155,-460.0,0.00021908,4]
[365382227,1749636639164,-460.0,0.00021908,4]
[365382229,1749636639173,-460.0,0.00021908,4]
[365382231,1749636639183,-460.0,0.00021908,4]
[365382233,1749636639192,-2781.81,0.00021908,4]
[365382235,1749636639201,-555.98,0.00021908,4]
[365382237,1749636639210,-709.91,0.00021908,4]
[365382239,1749636639219,-845.53,0.00021908,4]
[365382241,1749636639228,-400.0,0.00021908,4]
[365382243,1749636639238,-584.25253897,0.00021908,4]
[365382245,1749636639247,-996.29,0.00021908,4]
[365382247,1749636639256,-460.0,0.00021908,4]
[365382249,1749636639266,-460.0,0.00021908,4]
[365382251,1749636639274,-460.0,0.00021908,4]
[365382253,1749636639284,-2516.94,0.00021908,4]
[365382255,1749636639293,-460.0,0.00021908,4]
[365382257,1749636639303,-883.22,0.00021908,4]
[365382259,1749636639313,-1065.83,0.00021908,4]
[365382261,1749636639322,-460.0,0.00021909,4]
[365382263,1749636639332,-386.58685045,0.00021909,4]
[365382266,1749636639342,-400.0,0.00021909,4]
[365382269,1749636639351,-460.0,0.00021909,4]
[365382272,1749636639363,-460.0,0.00021909,4]
[365382274,1749636639372,-468.08,0.00021909,4]
[365382276,1749636639382,-460.0,0.00021909,4]
[365382278,1749636639403,-460.0,0.00021909,2]
[365382280,1749636639423,-460.0,0.00021909,4]
[365382282,1749636639443,-1000.0,0.00021944,5]
[365382285,1749636639463,-2055.05610826,0.00022003,6]
[365382287,1749636639473,-973.59,0.00022017,2]
[365382290,1749636639482,-4577.0,0.00022043,2]
[365382293,1749636639492,-153.06190237,0.00022073,2]
[365382295,1749636639501,-151.3354925,0.00022073,2]
[365382297,1749636639511,-500.0,0.00022073,2]
[365382300,1749636639520,-626.26542946,0.00022073,2]
[365382303,1749636639530,-5000.0,0.00022073,2]
[365382306,1749636639539,-1250.0,0.00022073,2]
[365382308,1749636639549,-1250.0,0.00022073,2]
[365382310,1749636639558,-752.75982885,0.00022073,2]
[365382312,1749636639566,-3000.0,0.000221,2]
[365382315,1749636639576,-2055.05610826,0.00022107,6]
[365382317,1749636639585,-3000.0,0.0002211,2]
[365382319,1749636639594,-3000.0,0.0002212,2]
[365382322,1749636639604,-3000.0,0.0002213,2]
[365382324,1749636639613,-3000.0,0.0002214,2]
[365382326,1749636639622,-3000.0,0.0002215,2]
[365382328,1749636639631,-3000.0,0.0002216,2]
[365382330,1749636639640,-500.0,0.00022169,2]
[365382332,1749636639650,-599.85,0.00022169,2]
[365382334,1749636639659,-176.56,0.00022169,2]
[365382336,1749636639669,-3000.0,0.0002217,2]
[365382338,1749636639679,-3000.0,0.0002218,2]
[365382340,1749636639688,-460.0,0.00022181,4]
[365382342,1749636639698,-1681.52,0.00022181,4]
[365382344,1749636639707,-1960.68,0.00022181,4]
[365382346,1749636639717,-1598.27,0.00022181,4]
[365382348,1749636639727,-1327.35,0.00022181,4]
[365382350,1749636639736,-460.0,0.00022181,4]
[365382352,1749636639746,-902.36,0.00022181,4]
[365382354,1749636639755,-1360.43,0.00022181,4]
[365382356,1749636639764,-1613.33,0.00022181,4]
[365382358,1749636639774,-594.16,0.00022181,4]
[365382360,1749636639784,-460.0,0.00022182,4]
[365382362,1749636639794,-609.12,0.00022182,4]
[365382364,1749636639804,-460.0,0.00022182,4]
[365382366,1749636639814,-460.0,0.00022182,4]
[365382368,1749636639822,-2781.81,0.00022182,4]
[365382370,1749636639833,-555.98,0.00022182,4]
[365382371,1749636639843,-709.91,0.00022182,4]
[365382373,1749636639852,-845.53,0.00022182,4]
[365382375,1749636639862,-996.29,0.00022182,4]
[365382389,1749636639987,-460.0,0.00022182,4]
[365382391,1749636639999,-460.0,0.00022182,4]
[365382393,1749636640009,-460.0,0.00022182,4]
[365382395,1749636640018,-2516.94,0.00022182,4]
[365382397,1749636640027,-460.0,0.00022182,4]
[365382399,1749636640036,-883.22,0.00022182,4]
[365382401,1749636640046,-1065.83,0.00022182,4]
[365382403,1749636640055,-460.0,0.00022183,4]
[365382405,1749636640065,-460.0,0.00022183,4]
[365382407,1749636640075,-460.0,0.00022183,4]
[365382409,1749636640085,-468.08,0.00022183,4]
[365382411,1749636640095,-460.0,0.00022183,4]
[365382413,1749636640105,-460.0,0.00022183,2]
[365382415,1749636640114,-371.18873186,0.00022183,4]
[365382417,1749636640124,-3000.0,0.0002219,2]
[365382419,1749636640133,-3000.0,0.000222,2]
[365382421,1749636640143,-529.16842561,0.000222,69]
[365382423,1749636640157,-254.69610548,0.000222,69]
[365382425,1749636640166,-783.86453105,0.000222,69]
[365382427,1749636640176,-3000.0,0.0002221,2]
[365382429,1749636640186,-2055.05610826,0.0002221,6]
[365382431,1749636640195,-3000.0,0.0002222,2]
[365382433,1749636640205,-5423.828795,0.0002223,2]
[365382435,1749636640215,-179.65118596,0.00022294,2]
[365382437,1749636640225,-302.90327425,0.00022314,7]
[365382440,1749636640236,-1752.15283401,0.00022314,7]
[365382442,1749636640250,-500.0,0.00022399,2]
[365382444,1749636640259,-367.56894886,0.00022399,2]
[365382446,1749636640271,-132.43105114,0.00022399,2]
[365382448,1749636640280,-452.65341355,0.00022399,2]
[365382450,1749636640289,-366.11422186,0.00022399,2]
[365382452,1749636640299,-160.0,0.00022399,2]
[365382454,1749636640309,-160.0,0.00022399,2]
[365382456,1749636640318,-160.0,0.00022399,2]
[365382458,1749636640328,-213.16534259,0.00022399,2]
[365382460,1749636640338,-160.0,0.00022399,2]
[365382462,1749636640348,-160.0,0.00022399,2]
[365382464,1749636640359,-160.0,0.00022399,2]
[365382466,1749636640369,-229.71724145,0.00022399,2]
[365382468,1749636640379,-160.0,0.00022399,2]
[365382470,1749636640389,-835.03886221,0.00022399,2]
[365382472,1749636640400,-2767.48480796,0.00022399,2]
[365382487,1749636640524,-2073.16201026,0.00022399,2]